bitfinex/quotes_SOLUSD_20230112
["timestamp","ask_amount","ask_price","bid_price","bid_amount"]
[1673537715747,113.2843,15.984,15.973,20.0]
[1673537716175,46.91,15.989,15.975,20.0]
[1673537716491,46.91,15.991,15.975,104.79448722]
[1673537716804,46.91,15.991,15.976,20.0]
[1673537717011,46.91,15.991,15.977,20.0]
[1673537717226,46.91,15.991,15.978,20.0]
[1673537717419,46.91,15.991,15.979,20.0]
[1673537717631,46.91,15.991,15.98,20.0]
[1673537718801,113.2843,15.992,15.98,37.84448722]
[1673537719120,113.2843,15.992,15.981,20.0]
[1673537719303,113.2843,15.992,15.982,20.0]
[1673537721007,20.0,15.989,15.982,20.0]
[1673537721196,17.0,15.988,15.976,20.0]
[1673537721408,26.67,15.99,15.978,17.84448722]
[1673537721622,46.91,15.991,15.979,20.0]
[1673537721856,17.0,15.99,15.98,20.0]
[1673537722044,113.2843,15.992,15.98,37.84448722]
[1673537722258,113.2843,15.992,15.981,20.0]
[1673537723001,113.2843,15.992,15.981,37.8666055]
[1673537723231,113.2843,15.992,15.982,20.0]
[1673537723532,113.2843,15.992,15.982,37.8666055]
[1673537723742,113.2843,15.992,15.983,20.0]
[1673537724790,113.2843,15.992,15.983,37.8666055]
[1673537728349,113.2843,15.992,15.984,20.0]
[1673537728555,46.89,15.997,15.985,20.0]
[1673537729619,235.18,15.999,15.985,20.0]
[1673537729846,17.0,15.998,15.985,20.0]
[1673537730156,20.0,15.996,15.981,20.0]
[1673537730354,63.89,15.995,15.981,20.0]
[1673537730556,46.89,15.995,15.981,20.0]
[1673537730765,46.89,15.998,15.981,20.0]
[1673537730996,46.89,15.998,15.983,20.0]
[1673537731211,46.89,15.998,15.984,20.0]
[1673537731413,46.89,15.998,15.984,37.8666055]
[1673537731942,46.88,15.999,15.986,20.0]
[1673537732261,46.88,15.999,15.98,118.9985]
[1673537732472,46.88,15.999,15.986,17.8666055]
[1673537732687,46.88,15.999,15.98,118.9985]
[1673537732868,37.0,15.998,15.98,136.8651055]
[1673537733078,46.89,15.997,15.98,136.8651055]
[1673537733521,17.0,15.996,15.978,46.94]
[1673537733723,26.67,15.99,15.975,114.4883]
[1673537734137,46.91,15.989,15.976,20.0]
[1673537734347,26.67,15.99,15.976,20.0]
[1673537734786,26.67,15.99,15.977,17.8666055]
[1673537734988,46.89,15.995,15.978,20.0]
[1673537735198,17.0,15.994,15.979,20.0]
[1673537735414,46.9,15.993,15.98,20.0]
[1673537735624,46.9,15.993,15.981,20.0]
[1673537737828,46.89,15.997,15.981,20.0]
[1673537738020,17.0,15.996,15.982,20.0]
[1673537738225,46.89,15.995,15.983,20.0]
[1673537738675,46.89,15.997,15.983,38.41128877]
[1673537738864,46.89,15.998,15.983,38.41128877]
[1673537739281,46.89,15.998,15.983,20.0]
[1673537739512,20.0,15.997,15.983,20.0]
[1673537740033,46.89,15.998,15.984,20.0]
[1673537740240,17.0,15.997,15.984,20.0]
[1673537740455,46.89,15.998,15.984,20.0]
[1673537740663,46.89,15.998,15.984,37.87646687]
[1673537740860,46.88,15.999,15.984,37.87646687]
[1673537741396,116.5417,16.0,15.985,46.92]
[1673537741612,116.5417,16.0,15.986,20.0]
[1673537741921,46.87,16.003,15.986,37.87646687]
[1673537742154,46.86,16.007,15.987,91.81731687]
[1673537742369,46.85,16.009,15.988,20.0]
[1673537742561,46.85,16.009,15.989,46.91]
[1673537742773,46.85,16.009,15.99,20.0]
[1673537742985,46.85,16.009,15.991,20.0]
[1673537743306,46.85,16.009,15.992,20.0]
[1673537743519,46.85,16.009,15.992,37.87646687]
[1673537743721,46.85,16.009,15.992,20.0]
[1673537743933,46.85,16.009,15.992,37.87646687]
[1673537744130,46.85,16.009,15.992,20.0]
[1673537744580,46.85,16.009,15.989,20.0]
[1673537744891,37.0,16.008,15.989,20.0]
[1673537745098,46.86,16.007,15.989,20.0]
[1673537745297,17.0,16.006,15.989,20.0]
[1673537745622,46.86,16.005,15.989,20.0]
[1673537745821,17.78,16.0,15.989,20.0]
[1673537746028,46.88,15.999,15.986,20.0]
[1673537746994,46.88,15.999,15.987,20.0]
[1673537747304,46.88,15.999,15.988,20.0]
[1673537747625,17.78,16.0,15.988,20.0]
[1673537747928,17.78,16.0,15.989,20.0]
[1673537748673,117.2662,16.002,15.989,20.0]
[1673537749395,117.2662,16.002,15.989,66.91]
[1673537749605,117.2662,16.002,15.989,20.0]
[1673537749821,46.86,16.008,15.991,20.0]
[1673537750017,46.85,16.009,15.991,20.0]
[1673537750225,46.83,16.016,15.992,66.9]
[1673537750555,46.83,16.017,15.992,357.94684814]
[1673537750770,46.83,16.018,15.994,20.0]
[1673537750993,46.83,16.018,15.995,66.89]
[1673537751165,46.83,16.018,15.995,124.93709314]
[1673537751378,46.83,16.018,15.996,58.04709314]
[1673537751602,46.83,16.018,15.997,66.89]
[1673537751800,46.83,16.018,15.998,20.0]
[1673537752007,46.83,16.018,15.999,46.88]
[1673537752226,46.83,16.018,16.0,110.2946]
[1673537752438,17.64,16.02,16.001,66.88]
[1673537752643,46.82,16.019,16.001,84.25677241]
[1673537752852,46.82,16.019,16.002,20.0]
[1673537753068,46.82,16.019,16.003,20.0]
[1673537753292,46.82,16.019,16.003,37.37677241]
[1673537753484,46.82,16.019,16.004,17.37677241]
[1673537754337,17.0,16.018,16.004,17.37677241]
[1673537754549,46.83,16.017,16.004,17.37677241]
[1673537755299,66.82,16.019,16.003,20.0]
[1673537755610,66.82,16.019,16.002,20.0]
[1673537755802,66.82,16.019,16.001,20.0]
[1673537755803,255.12,16.019,16.001,20.0]
[1673537756340,17.0,16.018,15.996,20.0]
[1673537756540,46.83,16.017,15.996,20.0]
[1673537756741,46.83,16.017,16.001,16.86602581]
[1673537757174,46.83,16.017,16.003,20.0]
[1673537757699,46.83,16.017,16.003,36.86602581]
[1673537758120,46.83,16.017,16.004,20.0]
[1673537759597,46.83,16.017,16.005,16.86602581]
[1673537759806,46.83,16.017,16.004,20.0]
[1673537760644,20.0,16.016,15.999,20.0]
[1673537760867,46.84,16.015,15.999,66.88]
[1673537761084,46.84,16.015,15.999,20.0]
[1673537761577,20.0,16.014,15.999,20.0]
[1673537762645,17.78,16.01,15.999,20.0]
[1673537762965,17.78,16.01,15.992,46.9]
[1673537762966,17.0,16.009,15.992,46.9]
[1673537763178,17.0,16.009,15.984,132.8968]
[1673537763179,46.86,16.008,15.99,46.91]
[1673537763395,17.0,16.007,15.989,46.91]
[1673537763580,46.86,16.006,15.991,16.86602581]
[1673537763784,46.86,16.008,15.991,33.73205162]
[1673537764010,46.86,16.008,15.991,16.86602581]
[1673537764215,46.86,16.008,15.991,108.20140708]
[1673537764628,46.85,16.009,15.993,20.0]
[1673537764843,46.85,16.009,15.994,20.0]
[1673537765170,46.85,16.009,15.994,83.76602581]
[1673537765491,64.64,16.01,15.995,36.86602581]
[1673537765686,64.64,16.01,15.994,66.9]
[1673537766102,64.64,16.01,15.994,20.0]
[1673537766315,64.64,16.01,15.993,20.0]
[1673537766518,64.64,16.01,15.993,40.0]
[1673537766729,64.64,16.01,15.993,56.86602581]
[1673537767149,64.64,16.01,15.993,20.0]
[1673537767367,20.0,16.009,15.993,20.0]
[1673537767579,46.86,16.008,15.993,20.0]
[1673537767785,66.85,16.009,15.993,20.0]
[1673537768205,20.0,16.007,15.99,20.0]
[1673537768432,46.86,16.006,15.99,20.0]
[1673537768749,46.86,16.006,15.99,40.0]
[1673537769171,66.86,16.007,15.991,16.86602581]
[1673537769382,17.0,16.006,15.992,20.0]
[1673537769593,20.0,16.004,15.992,20.0]
[1673537769782,17.78,16.0,15.992,20.0]
[1673537769992,17.78,16.0,15.99,16.86602581]
[1673537770225,17.78,16.0,15.991,20.0]
[1673537770631,46.86,16.008,15.992,20.0]
[1673537770840,46.85,16.009,15.993,46.9]
[1673537771168,20.0,16.008,15.994,20.0]
[1673537771900,46.86,16.007,15.994,20.0]
[1673537772112,66.86,16.008,15.994,20.0]
[1673537772731,17.0,16.007,15.994,20.0]
[1673537773481,20.0,16.006,15.994,20.0]
[1673537774100,17.78,16.0,15.994,20.0]
[1673537774319,17.78,16.0,15.99,20.0]
[1673537774508,17.78,16.0,15.989,20.0]
[1673537774927,17.78,16.0,15.99,46.91]
[1673537775145,46.86,16.006,15.991,20.0]
[1673537775571,46.86,16.006,15.991,40.0]
[1673537775792,20.0,16.005,15.991,20.0]
[1673537776000,37.0,16.005,15.991,20.0]
[1673537776208,37.0,16.005,15.99,20.0]
[1673537777665,46.86,16.006,15.99,20.0]
[1673537777883,119.7785,16.007,15.991,63.77602581]
[1673537778096,119.7785,16.007,15.992,20.0]
[1673537778310,135.76,16.01,15.993,46.9]
[1673537778508,64.64,16.01,15.994,20.0]
[1673537778726,17.79,16.01,15.995,20.0]
[1673537779253,64.64,16.01,15.994,36.86602581]
[1673537779454,64.64,16.01,15.994,20.0]
[1673537779877,64.64,16.01,15.995,20.0]
[1673537780089,64.64,16.01,15.995,36.86602581]
[1673537780311,17.79,16.01,15.996,66.89]
[1673537780499,17.79,16.01,15.997,20.0]
[1673537780706,17.79,16.01,15.998,20.0]
[1673537782723,118.0758,16.011,15.998,20.0]
[1673537782934,118.0758,16.011,15.999,46.88]
[1673537783254,118.0758,16.011,16.0,20.0]
[1673537783469,118.0758,16.011,16.001,20.0]
[1673537783656,118.0758,16.011,16.002,20.0]
[1673537784075,118.0758,16.011,15.999,20.0]
[1673537784495,118.0758,16.011,15.999,40.0]
[1673537785137,118.0758,16.011,15.999,20.0]
[1673537785351,118.0758,16.011,16.0,20.0]
[1673537785571,118.0758,16.011,15.999,20.0]
[1673537785754,82.27,16.01,15.995,16.86602581]
[1673537785966,17.0,16.009,15.992,46.9]
[1673537786180,46.86,16.008,15.991,110.4561]
[1673537786389,17.0,16.007,15.992,20.0]
[1673537786606,46.86,16.006,15.992,20.0]
[1673537787025,46.86,16.006,15.991,110.4561]
[1673537787652,46.86,16.006,15.992,20.0]
[1673537788599,17.0,16.005,15.991,110.4561]
[1673537788810,46.86,16.008,15.992,20.0]
[1673537789046,17.0,16.007,15.992,20.0]
[1673537789232,46.86,16.006,15.993,20.0]
[1673537789650,118.0758,16.011,15.994,46.9]
[1673537789972,118.0758,16.011,15.995,20.0]
[1673537790191,118.0758,16.011,15.996,46.89]
[1673537790389,118.0758,16.011,15.998,20.0]
[1673537790593,118.0758,16.011,15.999,46.88]
[1673537790804,118.0758,16.011,16.0,20.0]
[1673537791871,118.0758,16.011,15.999,20.0]
[1673537792185,26.64,16.01,15.999,20.0]
[1673537792395,26.64,16.01,15.992,20.0]
[1673537792396,20.0,16.008,15.995,20.0]
[1673537792606,17.0,16.007,15.992,177.7563]
[1673537792828,20.0,16.006,15.992,130.8563]
[1673537793009,17.0,16.005,15.992,110.8563]
[1673537793541,17.0,16.005,15.99,46.91]
[1673537793750,17.0,16.005,15.989,46.91]
[1673537793963,63.86,16.005,15.99,20.0]
[1673537794177,63.86,16.005,15.989,20.0]
[1673537794380,20.0,16.004,15.989,20.0]
[1673537794591,17.0,16.003,15.988,46.91]
[1673537794807,118.1734,16.002,15.988,46.91]
[1673537795021,17.0,16.001,15.988,46.91]
[1673537795549,179.71,16.0,15.97,133.64]
[1673537795758,179.71,16.0,15.979,108.4572]
[1673537795759,368.01,16.0,15.979,108.4572]
[1673537795980,17.0,15.999,15.979,108.4572]
[1673537796287,66.89,15.998,15.98,20.0]
[1673537796506,17.0,15.997,15.979,108.4572]
[1673537796697,46.89,15.996,15.979,108.4572]
[1673537796909,17.0,15.995,15.979,108.4572]
[1673537797117,46.9,15.994,15.979,108.4572]
[1673537797976,17.0,15.993,15.979,108.4572]
[1673537798159,17.0,15.993,15.98,20.0]
[1673537798382,117.7999,15.992,15.98,20.0]
[1673537798690,63.91,15.991,15.98,20.0]
[1673537798913,26.64,15.99,15.98,20.0]
[1673537799328,46.91,15.991,15.981,20.0]
[1673537799527,117.7999,15.992,15.982,20.0]
[1673537800160,117.7999,15.992,15.98,20.0]
[1673537801236,117.7999,15.992,15.981,20.0]
[1673537801420,117.7999,15.992,15.982,20.0]
[1673537802573,117.7999,15.992,15.981,20.0]
[1673537803124,26.6,15.99,15.981,20.0]
[1673537803325,26.6,15.99,15.98,20.0]
[1673537803649,26.6,15.99,15.981,20.0]
[1673537804073,117.7999,15.992,15.981,20.0]
[1673537807428,117.7999,15.992,15.98,20.0]
[1673537807851,46.91,15.991,15.98,20.0]
[1673537808496,117.7999,15.992,15.98,40.0]
[1673537810580,117.7999,15.992,15.981,20.0]
[1673537812678,117.7999,15.992,15.983,20.0]
[1673537812895,117.7999,15.992,15.984,20.0]
[1673537813107,117.7999,15.992,15.985,20.0]
[1673537813741,46.89,15.998,15.985,20.0]
[1673537814066,144.3399,16.0,15.987,20.0]
[1673537814282,144.3399,16.0,15.988,20.0]
[1673537814488,144.3399,16.0,15.989,20.0]
[1673537814689,144.3399,16.0,15.99,20.0]
[1673537816169,144.3399,16.0,15.988,20.0]
[1673537816776,252.18,15.999,15.98,66.94]
[1673537816988,20.0,15.998,15.98,137.6788]
[1673537817202,46.89,15.997,15.98,137.6788]
[1673537817415,17.0,15.996,15.98,137.6788]
[1673537817627,46.89,15.995,15.98,137.6788]
[1673537819114,17.0,15.994,15.98,137.6788]
[1673537819753,17.0,15.994,15.983,20.0]
[1673537819944,17.0,15.994,15.984,20.0]
[1673537821116,46.89,15.997,15.984,20.0]
[1673537821520,112.5006,15.998,15.984,20.0]
[1673537821944,46.89,15.997,15.985,20.0]
[1673537822475,112.5006,15.998,15.985,20.0]
[1673537823307,46.88,15.999,15.985,20.0]
[1673537823640,46.88,15.999,15.987,20.0]
[1673537824053,46.88,15.999,15.988,20.0]
[1673537824598,144.5299,16.0,15.989,20.0]
[1673537824789,144.5299,16.0,15.99,20.0]
[1673537825193,117.7999,16.0,15.99,20.0]
[1673537828028,117.7999,16.0,15.991,20.0]
[1673537828261,117.7999,16.0,15.992,20.0]
[1673537829507,117.7999,16.0,15.99,20.0]
[1673537830448,46.88,15.999,15.984,46.93]
[1673537830654,63.88,15.999,15.983,20.0]
[1673537831200,117.7999,16.0,15.984,46.93]
[1673537831411,117.7999,16.0,15.984,59.81832094]
[1673537831615,117.7999,16.0,15.985,20.0]
[1673537831942,117.7999,16.0,15.987,20.0]
[1673537832255,117.7999,16.0,15.989,20.0]
[1673537832475,117.7999,16.0,15.99,20.0]
[1673537832775,110.2159,16.005,15.99,20.0]
[1673537832990,110.2159,16.005,15.991,20.0]
[1673537833175,110.2159,16.005,15.992,20.0]
[1673537833388,110.2159,16.005,15.993,20.0]
[1673537833596,110.2159,16.005,15.994,20.0]
[1673537834025,46.87,16.004,15.994,20.0]
[1673537834446,46.86,16.007,15.994,20.0]
[1673537834672,17.0,16.006,15.994,20.0]
[1673537834867,46.86,16.005,15.994,20.0]
[1673537835497,17.0,16.004,15.994,20.0]
[1673537835707,17.0,16.004,15.989,20.0]
[1673537836037,20.0,15.999,15.983,20.0]
[1673537836247,63.89,15.998,15.983,20.0]
[1673537837168,46.88,15.999,15.983,20.0]
[1673537837384,111.4779,16.0,15.984,20.0]
[1673537837593,111.4779,16.0,15.984,66.93]
[1673537837808,111.4779,16.0,15.985,20.0]
[1673537838016,111.4779,16.0,15.986,20.0]
[1673537838436,111.4779,16.0,15.987,20.0]
[1673537838663,111.4779,16.0,15.988,20.0]
[1673537838857,111.4779,16.0,15.989,20.0]
[1673537839187,111.4779,16.0,15.99,20.0]
[1673537840008,111.4779,16.0,15.989,20.0]
[1673537840221,111.4779,16.0,15.99,20.0]
[1673537847398,17.0,15.999,15.987,115.015]
[1673537847608,46.89,15.998,15.981,66.94]
[1673537847794,138.1479,16.0,15.981,66.94]
[1673537847795,46.88,15.999,15.985,12.59390844]
[1673537848108,111.4779,16.0,15.981,141.67706523]
[1673537848320,111.4779,16.0,15.983,20.0]
[1673537848529,111.4779,16.0,15.984,46.93]
[1673537848739,111.4779,16.0,15.985,20.0]
[1673537849178,111.4779,16.0,15.987,20.0]
[1673537849376,111.4779,16.0,15.988,20.0]
[1673537849788,111.4779,16.0,15.989,20.0]
[1673537849997,111.4779,16.0,15.991,20.0]
[1673537850227,111.4779,16.0,15.992,20.0]
[1673537852518,138.0779,16.0,15.992,20.0]
[1673537852743,138.0779,16.0,15.99,20.0]
[1673537853677,138.0779,16.0,15.991,20.0]
[1673537854211,138.0779,16.0,15.992,20.0]
[1673537855074,26.6,16.0,15.992,20.0]
[1673537855375,26.6,16.0,15.993,20.0]
[1673537855561,46.86,16.006,15.995,20.0]
[1673537856426,46.85,16.009,15.995,20.0]
[1673537859053,17.0,16.008,15.995,20.0]
[1673537859381,46.86,16.007,15.995,20.0]
[1673537859773,17.0,16.006,15.994,20.0]
[1673537859980,46.86,16.005,15.994,20.0]
[1673537860835,46.85,16.009,15.994,20.0]
[1673537861047,46.85,16.009,15.995,20.0]
[1673537862398,17.0,16.008,15.995,20.0]
[1673537862609,46.86,16.007,15.995,20.0]
[1673537864837,135.55,16.01,15.995,20.0]
[1673537865038,17.0,16.009,15.995,20.0]
[1673537865247,46.86,16.008,15.995,20.0]
[1673537865458,46.85,16.009,15.995,20.0]
[1673537866180,116.8044,16.011,15.996,66.89]
[1673537866403,158.2513,16.018,15.996,79.48390844]
[1673537866725,158.2513,16.018,15.997,72.68902135]
[1673537866917,158.2513,16.018,15.998,66.89]
[1673537867127,158.2513,16.018,15.999,20.0]
[1673537867337,158.2513,16.018,16.0,46.88]
[1673537867546,158.2513,16.018,16.002,20.0]
[1673537867759,158.2513,16.018,16.003,20.0]
[1673537868412,46.83,16.018,16.003,20.0]
[1673537868716,133.1717,16.02,16.004,66.87]
[1673537868909,46.82,16.019,16.004,20.0]
[1673537871037,46.82,16.019,16.004,32.59390844]
[1673537871697,133.1717,16.02,16.004,32.59390844]
[1673537871698,133.1717,16.02,16.006,20.0]
[1673537872004,133.1717,16.02,16.007,20.0]
[1673537872212,133.1717,16.02,16.008,20.0]
[1673537872618,133.1717,16.02,16.009,20.0]
[1673537873350,17.0,16.019,16.005,117.1802]
[1673537873562,46.83,16.018,16.005,117.1802]
[1673537873764,46.83,16.018,16.006,20.0]
[1673537875458,46.82,16.019,16.006,20.0]
[1673537876427,46.82,16.019,16.006,32.59390844]
[1673537877036,46.82,16.019,16.006,20.0]
[1673537877246,46.82,16.019,16.007,12.59390844]
[1673537877900,46.82,16.019,16.006,20.0]
[1673537878087,46.82,16.019,16.006,32.59390844]
[1673537878725,46.82,16.019,16.007,20.0]
[1673537879047,115.2617,16.02,16.008,32.59390844]
[1673537879361,115.2617,16.02,16.01,20.0]
[1673537879565,115.2617,16.02,16.011,20.0]
[1673537879988,115.2617,16.02,16.012,20.0]
[1673537880310,115.2617,16.02,16.013,20.0]
[1673537881754,115.2617,16.02,16.011,20.0]
[1673537881971,115.2617,16.02,16.012,12.59390844]
[1673537882197,115.2617,16.02,16.013,19.92074383]
[1673537883015,17.0,16.019,16.013,19.92074383]
[1673537883230,17.0,16.019,16.014,20.0]
[1673537883447,115.2617,16.02,16.005,195.86401798]
[1673537883653,115.2617,16.02,16.0,52.20039334]
[1673537883654,252.12,16.019,16.002,20.0]
[1673537883986,20.0,16.018,16.0,34.53039334]
[1673537884197,63.83,16.017,16.0,34.53039334]
[1673537884406,20.0,16.016,16.0,34.53039334]
[1673537884619,20.0,16.016,15.999,156.6996]
[1673537884620,63.84,16.015,15.999,156.6996]
[1673537884820,63.84,16.015,15.999,109.8196]
[1673537885245,17.59,16.01,15.999,109.8196]
[1673537887122,17.59,16.01,16.0,20.0]
[1673537887342,46.84,16.014,16.001,20.0]
[1673537887664,46.83,16.017,16.002,20.0]
[1673537888613,46.83,16.018,16.002,20.0]
[1673537889445,235.13,16.018,16.002,32.22866194]
[1673537889862,20.0,16.017,16.002,20.0]
[1673537890070,46.83,16.016,16.0,20.0]
[1673537890294,20.0,16.014,16.0,20.0]
[1673537890500,17.0,16.013,16.0,20.0]
[1673537891238,46.83,16.016,16.001,20.0]
[1673537891558,115.5712,16.038,16.002,20.0]
[1673537891559,46.83,16.017,16.002,20.0]
[1673537891762,46.83,16.018,16.002,20.0]
[1673537891963,20.0,16.017,16.002,20.0]
[1673537892289,20.0,16.015,16.002,20.0]
[1673537892474,46.83,16.016,16.002,20.0]
[1673537892919,17.0,16.015,16.002,20.0]
[1673537893526,46.83,16.018,16.002,32.22866194]
[1673537893745,166.5267,16.019,16.002,32.22866194]
[1673537893971,166.5267,16.019,16.003,58.38965029]
[1673537894183,119.7067,16.019,16.004,40.0]
[1673537894389,119.7067,16.019,16.004,51.51965029]
[1673537894918,119.7067,16.019,16.004,98.38965029]
[1673537895316,119.7067,16.019,16.005,11.51965029]
[1673537895539,119.7067,16.019,16.004,86.87]
[1673537896361,119.7067,16.019,16.004,40.0]
[1673537896573,133.0617,16.02,16.004,40.0]
[1673537896802,133.0617,16.02,16.005,58.37965029]
[1673537896998,115.2617,16.02,16.005,58.37965029]
[1673537897208,115.2617,16.02,16.006,51.51965029]
[1673537897416,115.2617,16.02,16.007,46.86]
[1673537897736,114.7617,16.02,16.008,20.0]
[1673537898038,46.8,16.027,16.01,20.0]
[1673537898251,46.8,16.027,16.011,20.0]
[1673537898464,162.6122,16.028,16.012,46.84]
[1673537898665,46.8,16.028,16.013,20.0]
[1673537898875,17.92,16.03,16.013,20.0]
[1673537899196,17.92,16.03,16.014,20.0]
[1673537899411,159.68284873,16.029,16.013,31.51965029]
[1673537899805,159.68284873,16.029,16.013,20.0]
[1673537900856,17.0,16.028,16.013,20.0]
[1673537901594,159.68284873,16.029,16.013,20.0]
[1673537902436,159.68284873,16.029,16.014,20.0]
[1673537903498,17.0,16.028,16.014,20.0]
[1673537903697,159.68284873,16.029,16.014,20.0]
[1673537903919,17.0,16.028,16.014,20.0]
[1673537906337,159.68284873,16.029,16.014,20.0]
[1673537906554,112.89284873,16.029,16.014,20.0]
[1673537906763,46.8,16.028,16.014,20.0]
[1673537907185,159.68284873,16.029,16.014,20.0]
[1673537907708,0.55954873,16.029,16.015,74.58202435]
[1673537907895,0.55954873,16.029,16.016,20.0]
[1673537908113,0.55954873,16.029,16.017,180.3021]
[1673537908322,0.55954873,16.029,16.017,222.57451769]
[1673537908541,0.55954873,16.029,16.018,54.53039334]
[1673537908742,0.55954873,16.029,16.019,66.82]
[1673537908976,0.55954873,16.029,16.02,20.0]
[1673537909166,0.55954873,16.029,16.021,66.82]
[1673537909381,0.55954873,16.029,16.022,20.0]
[1673537909794,0.55954873,16.029,16.023,20.0]
[1673537911287,46.8,16.028,16.01,20.0]
[1673537911600,46.8,16.028,16.0,687.04]
[1673537911601,46.8,16.028,16.011,119.2496]
[1673537911995,20.0,16.026,16.011,119.2496]
[1673537912209,46.81,16.025,16.011,119.2496]
[1673537912436,46.8,16.028,16.011,119.2496]
[1673537912626,17.0,16.027,16.011,119.2496]
[1673537912838,46.8,16.026,16.011,119.2496]
[1673537913050,17.0,16.025,16.012,20.0]
[1673537913479,46.8,16.028,16.012,20.0]
[1673537914331,0.55954873,16.029,16.013,46.84]
[1673537914642,0.55954873,16.029,16.015,20.0]
[1673537914960,0.55954873,16.029,16.015,66.84]
[1673537915358,118.35924873,16.029,16.015,66.84]
[1673537917468,118.35924873,16.029,16.015,20.0]
[1673537918621,118.35924873,16.029,16.016,27.62516579]
[1673537918833,0.55954873,16.029,16.018,20.0]
[1673537919043,0.55954873,16.029,16.019,20.0]
[1673537919688,0.55954873,16.029,16.02,20.0]
[1673537920101,0.55954873,16.029,16.021,20.0]
[1673537922940,0.55954873,16.029,10.21,1000.0]
[1673537922941,0.55954873,16.029,16.015,46.84]
[1673537923269,46.8,16.028,16.013,20.0]
[1673537923797,46.8,16.028,16.013,66.84]
[1673537923995,46.8,16.028,16.013,20.0]
[1673537924308,46.8,16.028,16.013,25.73227639]
[1673537924501,47.34954873,16.029,16.014,20.0]
[1673537924711,47.34954873,16.029,16.015,20.0]
[1673537924922,0.55954873,16.029,16.015,20.0]
[1673537925144,118.59264873,16.029,16.015,20.0]
[1673537928205,118.59264873,16.029,16.014,20.0]
[1673537928603,165.38264873,16.029,16.014,20.0]
[1673537928813,20.0,16.027,16.011,20.0]
[1673537929136,20.0,16.025,16.011,20.0]
[1673537929344,17.0,16.024,16.011,20.0]
[1673537929556,46.8,16.026,16.011,40.0]
[1673537929988,46.8,16.028,16.011,40.0]
[1673537930202,46.8,16.028,16.012,20.0]
[1673537930413,46.8,16.028,16.013,20.0]
[1673537930614,46.8,16.028,16.014,20.0]
[1673537932303,46.8,16.028,16.014,24.29341835]
[1673537932525,118.59264873,16.029,16.015,66.84]
[1673537932831,118.59264873,16.029,16.016,20.0]